[Event "Late-Titled-Tuesday-Blitz-January-30-2024"]
[Site "Chess.com"]
[Date "2024.01.30"]
[Round "3"]
[White "IlanSchnaider"]
[Black "Cambek64"]
[Result "0-1"]
[WhiteElo "2661"]
[BlackElo "2518"]
[TimeControl "180+1"]
[EndTime "14:28:02 PST"]
[Termination "Cambek64 won by checkmate"]

1. e4 {[%clk 0:03:00.9]} 1... e6 {[%clk 0:02:52.5]} 2. d4 {[%clk 0:03:00.4]}
2... d5 {[%clk 0:02:52.6]} 3. Nd2 {[%clk 0:03:00.8]} 3... Nc6 {[%clk 0:02:48.9]}
4. Ngf3 {[%clk 0:02:59.8]} 4... Nf6 {[%clk 0:02:49.2]} 5. e5 {[%clk 0:02:56.8]}
5... Nd7 {[%clk 0:02:49.7]} 6. Be2 {[%clk 0:02:52]} 6... f6 {[%clk 0:02:48.8]}
7. exf6 {[%clk 0:02:50.8]} 7... Nxf6 {[%clk 0:02:49.3]} 8. Nf1 {[%clk
0:02:48.4]} 8... Bd6 {[%clk 0:02:49.1]} 9. Ng3 {[%clk 0:02:45.3]} 9... O-O
{[%clk 0:02:49.5]} 10. O-O {[%clk 0:02:45.5]} 10... e5 {[%clk 0:02:48.3]} 11.
dxe5 {[%clk 0:02:43.9]} 11... Nxe5 {[%clk 0:02:48.7]} 12. b3 {[%clk 0:02:38.4]}
12... c6 {[%clk 0:02:47.8]} 13. Bb2 {[%clk 0:02:37.3]} 13... Neg4 {[%clk
0:02:37.2]} 14. Nd4 {[%clk 0:02:23.6]} 14... Qc7 {[%clk 0:02:11.5]} 15. Bf3
{[%clk 0:01:40.5]} 15... Bd7 {[%clk 0:02:08.8]} 16. Qd2 {[%clk 0:01:06.4]} 16...
Bf4 {[%clk 0:02:04.8]} 17. Qd3 {[%clk 0:00:52.8]} 17... a6 {[%clk 0:01:55.9]}
18. c4 {[%clk 0:00:35.8]} 18... Ne5 {[%clk 0:01:38]} 19. Qd1 {[%clk 0:00:35.5]}
19... c5 {[%clk 0:01:37]} 20. Nc2 {[%clk 0:00:27.8]} 20... d4 {[%clk 0:01:36]}
21. Bd5+ {[%clk 0:00:18.8]} 21... Nxd5 {[%clk 0:01:33.1]} 22. cxd5 {[%clk
0:00:19.7]} 22... Qd6 {[%clk 0:01:33]} 23. Re1 {[%clk 0:00:13.7]} 23... Qxd5
{[%clk 0:01:29.6]} 24. Ne3 {[%clk 0:00:11.2]} 24... Qf7 {[%clk 0:01:26.8]} 25.
Nc4 {[%clk 0:00:05.8]} 25... Bxg3 {[%clk 0:01:24.2]} 26. fxg3 {[%clk 0:00:05.3]}
26... Nxc4 {[%clk 0:01:13.7]} 27. bxc4 {[%clk 0:00:05.4]} 27... Qf2+ {[%clk
0:01:11.2]} 28. Kh1 {[%clk 0:00:05.4]} 28... Bc6 {[%clk 0:01:10.1]} 29. Rg1
{[%clk 0:00:04.6]} 29... Rae8 {[%clk 0:01:09.6]} 30. Qg4 {[%clk 0:00:01.5]}
30... Re2 {[%clk 0:01:08.6]} 31. Qh3 {[%clk 0:00:02.1]} 31... Rxb2 {[%clk
0:01:04.6]} 32. Qe6+ {[%clk 0:00:01.9]} 32... Kh8 {[%clk 0:01:03.3]} 33. Qh3
{[%clk 0:00:02.8]} 33... h6 {[%clk 0:01:02]} 34. Rae1 {[%clk 0:00:02.5]} 34...
Rxa2 {[%clk 0:00:58]} 35. Re6 {[%clk 0:00:02.5]} 35... Qxg1+ {[%clk 0:00:56.3]}
36. Kxg1 {[%clk 0:00:02]} 36... Ra1+ {[%clk 0:00:56.8]} 37. Re1 {[%clk
0:00:02.9]} 37... Rxe1# {[%clk 0:00:56.6]} 0-1

[Event "Late-Titled-Tuesday-Blitz-January-30-2024"]
[Site "Chess.com"]
[Date "2024.01.30"]
[Round "3"]
[White "guillembaches"]
[Black "DonJuanEGenaro"]
[Result "1-0"]
[WhiteElo "2544"]
[BlackElo "2012"]
[TimeControl "180+1"]
[EndTime "14:28:04 PST"]
[Termination "guillembaches won by resignation"]

1. d4 {[%clk 0:03:00.9]} 1... d5 {[%clk 0:02:57.5]} 2. Nf3 {[%clk 0:03:01.4]}
2... e6 {[%clk 0:02:57.5]} 3. Bg5 {[%clk 0:03:01.6]} 3... Qd6 {[%clk 0:02:54.4]}
4. Nbd2 {[%clk 0:02:59.9]} 4... Be7 {[%clk 0:02:46.4]} 5. Bxe7 {[%clk
0:02:59.7]} 5... Nxe7 {[%clk 0:02:45.8]} 6. e3 {[%clk 0:02:58.4]} 6... Nd7
{[%clk 0:02:43]} 7. Bd3 {[%clk 0:02:55.6]} 7... e5 {[%clk 0:02:40]} 8. dxe5
{[%clk 0:02:55.3]} 8... Nxe5 {[%clk 0:02:39.7]} 9. Nxe5 {[%clk 0:02:54.9]} 9...
Qxe5 {[%clk 0:02:39.4]} 10. c3 {[%clk 0:02:54.5]} 10... Qg5 {[%clk 0:02:30.6]}
11. O-O {[%clk 0:02:46.9]} 11... c6 {[%clk 0:02:15.1]} 12. e4 {[%clk 0:02:41.7]}
12... O-O {[%clk 0:02:08.2]} 13. f4 {[%clk 0:02:38.8]} 13... Qh6 {[%clk
0:02:04.6]} 14. e5 {[%clk 0:02:36.1]} 14... Bf5 {[%clk 0:02:02]} 15. Nb3 {[%clk
0:02:27.7]} 15... f6 {[%clk 0:01:57.1]} 16. Nd4 {[%clk 0:02:01.3]} 16... Bxd3
{[%clk 0:01:54.9]} 17. Qxd3 {[%clk 0:02:01.3]} 17... fxe5 {[%clk 0:01:53.9]} 18.
fxe5 {[%clk 0:02:01.4]} 18... Qh5 {[%clk 0:01:38.3]} 19. Nf3 {[%clk 0:01:48]}
19... Rae8 {[%clk 0:01:31.7]} 20. Rae1 {[%clk 0:01:44.3]} 20... Ng6 {[%clk
0:01:29.7]} 21. Qd4 {[%clk 0:01:32.4]} 21... b6 {[%clk 0:01:25.3]} 22. c4 {[%clk
0:01:26]} 22... Nf4 {[%clk 0:01:22.2]} 23. cxd5 {[%clk 0:01:15.1]} 23... cxd5
{[%clk 0:01:16]} 24. Kh1 {[%clk 0:01:08.8]} 24... Kh8 {[%clk 0:00:51.6]} 25. Qd2
{[%clk 0:01:06.5]} 25... Rf5 {[%clk 0:00:31.9]} 26. a3 {[%clk 0:00:54.8]} 26...
Qf7 {[%clk 0:00:24.6]} 27. b4 {[%clk 0:00:37]} 27... Qd7 {[%clk 0:00:24.2]} 28.
Nd4 {[%clk 0:00:33.1]} 28... Rff8 {[%clk 0:00:11.3]} 29. Rxf4 {[%clk 0:00:31.4]}
1-0

[Event "Late-Titled-Tuesday-Blitz-January-30-2024"]
[Site "Chess.com"]
[Date "2024.01.30"]
[Round "3"]
[White "Mackster23"]
[Black "toninhojit"]
[Result "0-1"]
[WhiteElo "2648"]
[BlackElo "2507"]
[TimeControl "180+1"]
[EndTime "14:28:07 PST"]
[Termination "toninhojit won by resignation"]

1. e4 {[%clk 0:02:57.4]} 1... e5 {[%clk 0:02:59]} 2. Nf3 {[%clk 0:02:56.9]} 2...
Nc6 {[%clk 0:02:59.6]} 3. Bc4 {[%clk 0:02:55.3]} 3... Nf6 {[%clk 0:02:59.8]} 4.
d4 {[%clk 0:02:55.4]} 4... exd4 {[%clk 0:02:56]} 5. O-O {[%clk 0:02:55.9]} 5...
d6 {[%clk 0:02:51]} 6. Nxd4 {[%clk 0:02:54.7]} 6... Be7 {[%clk 0:02:49.3]} 7.
Nc3 {[%clk 0:02:52.1]} 7... O-O {[%clk 0:02:49]} 8. h3 {[%clk 0:02:50.4]} 8...
Bd7 {[%clk 0:02:49.4]} 9. Nde2 {[%clk 0:02:46.7]} 9... Re8 {[%clk 0:02:44]} 10.
Ng3 {[%clk 0:02:41.4]} 10... Be6 {[%clk 0:02:41.4]} 11. Nd5 {[%clk 0:02:38.8]}
11... Bxd5 {[%clk 0:02:30.3]} 12. exd5 {[%clk 0:02:32.2]} 12... Ne5 {[%clk
0:02:30.7]} 13. Bb3 {[%clk 0:02:28.6]} 13... g6 {[%clk 0:02:31.1]} 14. f4 {[%clk
0:02:16.6]} 14... Ned7 {[%clk 0:02:31.6]} 15. c3 {[%clk 0:02:08.3]} 15... Nc5
{[%clk 0:02:32]} 16. Bc2 {[%clk 0:02:08.3]} 16... Bf8 {[%clk 0:02:32.4]} 17. Qf3
{[%clk 0:02:05.5]} 17... a5 {[%clk 0:02:21.8]} 18. f5 {[%clk 0:02:04.1]} 18...
Bg7 {[%clk 0:02:13.8]} 19. Bg5 {[%clk 0:01:51]} 19... h6 {[%clk 0:02:13.6]} 20.
fxg6 {[%clk 0:01:49.4]} 20... hxg5 {[%clk 0:02:08.7]} 21. gxf7+ {[%clk
0:01:49.7]} 21... Kxf7 {[%clk 0:02:09.1]} 22. Qh5+ {[%clk 0:01:36.3]} 22... Kg8
{[%clk 0:02:00.7]} 23. Qxg5 {[%clk 0:01:35.7]} 23... Nfe4 {[%clk 0:01:54.1]} 24.
Qg6 {[%clk 0:01:21.7]} 24... Qg5 {[%clk 0:01:44.4]} 25. Qf7+ {[%clk 0:01:06.4]}
25... Kh8 {[%clk 0:01:41.4]} 26. Nxe4 {[%clk 0:00:53.5]} 26... Nxe4 {[%clk
0:01:39.3]} 27. Rf5 {[%clk 0:00:22.2]} 27... Qe3+ {[%clk 0:01:29]} 28. Kh2
{[%clk 0:00:22.3]} 28... Be5+ {[%clk 0:01:22.1]} 29. Rxe5 {[%clk 0:00:22.5]}
29... Rxe5 {[%clk 0:01:08.1]} 30. Rf1 {[%clk 0:00:21.6]} 30... Qg3+ {[%clk
0:01:00.1]} 31. Kg1 {[%clk 0:00:16]} 31... Rg8 {[%clk 0:00:55.7]} 32. Bxe4
{[%clk 0:00:09.1]} 32... Qe3+ {[%clk 0:00:55.2]} 33. Kh1 {[%clk 0:00:07.4]}
33... Qxe4 {[%clk 0:00:50.2]} 34. Qf6+ {[%clk 0:00:05.9]} 34... Kh7 {[%clk
0:00:50.2]} 35. Rf2 {[%clk 0:00:03]} 35... Reg5 {[%clk 0:00:46.7]} 36. Qf7+
{[%clk 0:00:02.1]} 36... R8g7 {[%clk 0:00:46.4]} 37. Qf3 {[%clk 0:00:01.8]}
37... Qxf3 {[%clk 0:00:46.3]} 38. Rxf3 {[%clk 0:00:02.7]} 0-1

[Event "Late-Titled-Tuesday-Blitz-January-30-2024"]
[Site "Chess.com"]
[Date "2024.01.30"]
[Round "3"]
[White "yaguigor"]
[Black "emeli_chess"]
[Result "0-1"]
[WhiteElo "2623"]
[BlackElo "2493"]
[TimeControl "180+1"]
[EndTime "14:28:10 PST"]
[Termination "emeli_chess won by resignation"]

1. Nf3 {[%clk 0:03:00.9]} 1... f5 {[%clk 0:02:55.3]} 2. d4 {[%clk 0:02:58.3]}
2... Nf6 {[%clk 0:02:55.2]} 3. g3 {[%clk 0:02:55.7]} 3... g6 {[%clk 0:02:54.8]}
4. Bg2 {[%clk 0:02:55.8]} 4... Bg7 {[%clk 0:02:55.2]} 5. O-O {[%clk 0:02:55.9]}
5... O-O {[%clk 0:02:55.4]} 6. c4 {[%clk 0:02:55.8]} 6... d6 {[%clk 0:02:55.8]}
7. Nc3 {[%clk 0:02:55.8]} 7... c6 {[%clk 0:02:54.6]} 8. d5 {[%clk 0:02:54.4]}
8... e5 {[%clk 0:02:46.1]} 9. dxe6 {[%clk 0:02:54]} 9... Bxe6 {[%clk 0:02:44.8]}
10. b3 {[%clk 0:02:52.5]} 10... Ne4 {[%clk 0:02:25.8]} 11. Nxe4 {[%clk
0:02:50.3]} 11... Bxa1 {[%clk 0:02:25.6]} 12. Bg5 {[%clk 0:02:38]} 12... Qc7
{[%clk 0:02:19.1]} 13. Qxa1 {[%clk 0:02:17.3]} 13... fxe4 {[%clk 0:02:17.3]} 14.
Nd4 {[%clk 0:02:03.7]} 14... Re8 {[%clk 0:02:09.5]} 15. Bxe4 {[%clk 0:01:52.5]}
15... Bh3 {[%clk 0:02:08.4]} 16. Bg2 {[%clk 0:01:49.9]} 16... Bxg2 {[%clk
0:02:07.7]} 17. Kxg2 {[%clk 0:01:50.8]} 17... Nd7 {[%clk 0:02:06.3]} 18. e4
{[%clk 0:01:41.5]} 18... Rxe4 {[%clk 0:01:53.7]} 19. Rd1 {[%clk 0:01:40.3]}
19... Rae8 {[%clk 0:01:49.8]} 20. Nf3 {[%clk 0:01:39.1]} 20... Ne5 {[%clk
0:01:30.4]} 21. Nd4 {[%clk 0:01:29.3]} 21... Nf7 {[%clk 0:01:24]} 22. Bf6 {[%clk
0:01:26.7]} 22... Qd7 {[%clk 0:00:57.9]} 23. h3 {[%clk 0:01:23.2]} 23... Nh6
{[%clk 0:00:42.3]} 24. Qc3 {[%clk 0:01:18.5]} 24... Nf5 {[%clk 0:00:33.6]} 25.
Nf3 {[%clk 0:01:12.3]} 25... Re2 {[%clk 0:00:28.3]} 26. Rd3 {[%clk 0:00:57.9]}
26... Qe6 {[%clk 0:00:23.9]} 27. Ng5 {[%clk 0:00:54.8]} 27... Rxf2+ {[%clk
0:00:22]} 28. Kxf2 {[%clk 0:00:52.1]} 28... Qe2+ {[%clk 0:00:20.8]} 29. Kg1
{[%clk 0:00:51.3]} 29... Ne3 {[%clk 0:00:17.2]} 30. Rd2 {[%clk 0:00:35.5]} 30...
Qe1+ {[%clk 0:00:16]} 31. Kh2 {[%clk 0:00:35.8]} 31... Qxd2+ {[%clk 0:00:16.1]}
32. Qxd2 {[%clk 0:00:35.1]} 32... Nf1+ {[%clk 0:00:16.4]} 33. Kg2 {[%clk
0:00:35.1]} 33... Nxd2 {[%clk 0:00:17.3]} 34. Bc3 {[%clk 0:00:33]} 34... Ne4
{[%clk 0:00:17]} 35. Be1 {[%clk 0:00:30.7]} 35... Nxg5 {[%clk 0:00:16.2]} 0-1

[Event "Late-Titled-Tuesday-Blitz-January-30-2024"]
[Site "Chess.com"]
[Date "2024.01.30"]
[Round "3"]
[White "vugarrasulov"]
[Black "Jagerrmeisterr"]
[Result "1-0"]
[WhiteElo "2954"]
[BlackElo "2718"]
[TimeControl "180+1"]
[EndTime "14:28:15 PST"]
[Termination "vugarrasulov won on time"]

1. e4 {[%clk 0:03:00.9]} 1... c6 {[%clk 0:02:58]} 2. Nf3 {[%clk 0:02:57.9]} 2...
d5 {[%clk 0:02:57.9]} 3. d3 {[%clk 0:02:58.5]} 3... Qc7 {[%clk 0:02:57.5]} 4.
Nc3 {[%clk 0:02:58]} 4... Nf6 {[%clk 0:02:39.7]} 5. e5 {[%clk 0:02:56.5]} 5...
Nfd7 {[%clk 0:02:39.8]} 6. d4 {[%clk 0:02:50.4]} 6... e6 {[%clk 0:02:38.9]} 7.
Bd3 {[%clk 0:02:42.4]} 7... c5 {[%clk 0:02:29.9]} 8. O-O {[%clk 0:02:30.8]} 8...
Nc6 {[%clk 0:02:21.8]} 9. Bf4 {[%clk 0:02:26]} 9... a6 {[%clk 0:02:10]} 10. dxc5
{[%clk 0:02:17.6]} 10... Nxc5 {[%clk 0:01:58.8]} 11. Re1 {[%clk 0:02:16.6]}
11... b5 {[%clk 0:01:51.9]} 12. a3 {[%clk 0:02:12.8]} 12... Be7 {[%clk
0:01:43.3]} 13. Bg3 {[%clk 0:02:12.3]} 13... Qd7 {[%clk 0:01:31.4]} 14. b4
{[%clk 0:02:03.5]} 14... Nxd3 {[%clk 0:01:29.8]} 15. cxd3 {[%clk 0:02:04.4]}
15... h5 {[%clk 0:01:29.7]} 16. h4 {[%clk 0:02:03.9]} 16... Bb7 {[%clk
0:01:26.7]} 17. Rc1 {[%clk 0:02:02.2]} 17... Rc8 {[%clk 0:01:22.9]} 18. Ne2
{[%clk 0:01:56.8]} 18... d4 {[%clk 0:01:14.1]} 19. Qd2 {[%clk 0:01:56.8]} 19...
a5 {[%clk 0:01:13.6]} 20. bxa5 {[%clk 0:01:44.7]} 20... Bxa3 {[%clk 0:01:13.6]}
21. Rb1 {[%clk 0:01:45.2]} 21... b4 {[%clk 0:01:13.7]} 22. Qg5 {[%clk
0:01:37.4]} 22... Kf8 {[%clk 0:01:10.6]} 23. Qf4 {[%clk 0:01:28]} 23... Nxa5
{[%clk 0:01:06.5]} 24. Nexd4 {[%clk 0:01:23.8]} 24... Bd5 {[%clk 0:01:05.6]} 25.
Ng5 {[%clk 0:01:17.6]} 25... b3 {[%clk 0:01:00.8]} 26. Qd2 {[%clk 0:01:09]}
26... Ra8 {[%clk 0:00:34.1]} 27. Ra1 {[%clk 0:01:08.9]} 27... Bc5 {[%clk
0:00:13.6]} 28. Rxa5 {[%clk 0:00:59.2]} 28... Bxd4 {[%clk 0:00:13.9]} 29. Qb4+
{[%clk 0:00:55.7]} 29... Ke8 {[%clk 0:00:13.5]} 30. Rxa8+ {[%clk 0:00:49.3]}
30... Bxa8 {[%clk 0:00:12.8]} 31. Qxb3 {[%clk 0:00:42.9]} 31... Ba7 {[%clk
0:00:08.8]} 32. Ra1 {[%clk 0:00:37.8]} 1-0

[Event "Late-Titled-Tuesday-Blitz-January-30-2024"]
[Site "Chess.com"]
[Date "2024.01.30"]
[Round "3"]
[White "Filipets"]
[Black "JSPrepz"]
[Result "0-1"]
[WhiteElo "2594"]
[BlackElo "2860"]
[TimeControl "180+1"]
[EndTime "14:28:16 PST"]
[Termination "JSPrepz won on time"]

1. c4 {[%clk 0:02:59.9]} 1... e5 {[%clk 0:02:59.7]} 2. Nc3 {[%clk 0:02:59.3]}
2... Nc6 {[%clk 0:03:00.4]} 3. g3 {[%clk 0:02:59.6]} 3... Bc5 {[%clk 0:03:00.7]}
4. Bg2 {[%clk 0:03:00]} 4... d6 {[%clk 0:03:01.3]} 5. d3 {[%clk 0:03:00.3]} 5...
a6 {[%clk 0:03:01.9]} 6. Nf3 {[%clk 0:02:57.2]} 6... Ba7 {[%clk 0:03:01.9]} 7.
Bd2 {[%clk 0:02:51.8]} 7... Nge7 {[%clk 0:03:01.8]} 8. Rb1 {[%clk 0:02:50.3]}
8... O-O {[%clk 0:02:58.8]} 9. b4 {[%clk 0:02:49.6]} 9... Ng6 {[%clk 0:02:54.5]}
10. a4 {[%clk 0:02:49]} 10... a5 {[%clk 0:02:48.7]} 11. b5 {[%clk 0:02:47.5]}
11... Nce7 {[%clk 0:02:48.4]} 12. Nd5 {[%clk 0:02:42.5]} 12... Nxd5 {[%clk
0:02:47.2]} 13. cxd5 {[%clk 0:02:43.4]} 13... Bb6 {[%clk 0:02:47.8]} 14. h4
{[%clk 0:02:40.7]} 14... h6 {[%clk 0:02:40.2]} 15. h5 {[%clk 0:02:28.8]} 15...
Ne7 {[%clk 0:02:40.2]} 16. Nh4 {[%clk 0:01:29.2]} 16... Nf5 {[%clk 0:02:33.8]}
17. e3 {[%clk 0:01:24.4]} 17... Nxh4 {[%clk 0:02:27.7]} 18. Rxh4 {[%clk
0:01:25.3]} 18... f5 {[%clk 0:02:28.3]} 19. Kf1 {[%clk 0:01:22.2]} 19... Bd7
{[%clk 0:02:24.4]} 20. Rc1 {[%clk 0:01:20.2]} 20... Qf6 {[%clk 0:02:20.3]} 21.
Bc3 {[%clk 0:01:12.9]} 21... Rf7 {[%clk 0:02:20.1]} 22. f4 {[%clk 0:01:07.5]}
22... Bxe3 {[%clk 0:02:13.8]} 23. Rc2 {[%clk 0:01:08.2]} 23... Bb6 {[%clk
0:02:09.2]} 24. Re2 {[%clk 0:01:05.7]} 24... Re8 {[%clk 0:02:07.5]} 25. Bf3
{[%clk 0:01:03.7]} 25... Rfe7 {[%clk 0:01:53.5]} 26. Qa1 {[%clk 0:01:01.3]}
26... Bd4 {[%clk 0:01:42.3]} 27. Bxd4 {[%clk 0:00:58.4]} 27... exd4 {[%clk
0:01:42.3]} 28. Rhh2 {[%clk 0:00:57.3]} 28... Re3 {[%clk 0:01:40.9]} 29. Rxe3
{[%clk 0:00:54.8]} 29... Rxe3 {[%clk 0:01:41.8]} 30. Qd1 {[%clk 0:00:50.8]}
30... Qe7 {[%clk 0:01:35.8]} 31. Rc2 {[%clk 0:00:47.7]} 31... Be8 {[%clk
0:01:32.8]} 32. Kf2 {[%clk 0:00:46.3]} 32... Bf7 {[%clk 0:01:23.5]} 33. Rc4
{[%clk 0:00:44]} 33... Qd8 {[%clk 0:00:59.3]} 34. Rxd4 {[%clk 0:00:42.6]} 34...
Re8 {[%clk 0:00:58.5]} 35. Rc4 {[%clk 0:00:42.1]} 35... b6 {[%clk 0:00:40.9]}
36. Qd2 {[%clk 0:00:41.5]} 36... Re7 {[%clk 0:00:39.2]} 37. d4 {[%clk
0:00:40.1]} 37... Kh8 {[%clk 0:00:39]} 0-1

[Event "Late-Titled-Tuesday-Blitz-January-30-2024"]
[Site "Chess.com"]
[Date "2024.01.30"]
[Round "3"]
[White "sjoerd893"]
[Black "Ali_rastbod"]
[Result "0-1"]
[WhiteElo "2505"]
[BlackElo "2686"]
[TimeControl "180+1"]
[EndTime "14:28:18 PST"]
[Termination "Ali_rastbod won on time"]

1. e4 {[%clk 0:03:00.9]} 1... d6 {[%clk 0:03:00.2]} 2. d4 {[%clk 0:03:00.3]}
2... Nf6 {[%clk 0:03:00.9]} 3. Nc3 {[%clk 0:02:59.7]} 3... g6 {[%clk 0:03:01.4]}
4. f3 {[%clk 0:02:57.4]} 4... Bg7 {[%clk 0:03:01.8]} 5. Be3 {[%clk 0:02:57.5]}
5... c6 {[%clk 0:03:02.5]} 6. Qd2 {[%clk 0:02:57.8]} 6... Qa5 {[%clk 0:03:03.2]}
7. O-O-O {[%clk 0:02:53.6]} 7... Nbd7 {[%clk 0:03:01.4]} 8. Kb1 {[%clk 0:02:53]}
8... b5 {[%clk 0:02:55.5]} 9. g4 {[%clk 0:02:44.3]} 9... Nb6 {[%clk 0:02:51.9]}
10. Bd3 {[%clk 0:02:34.1]} 10... Be6 {[%clk 0:02:36.1]} 11. d5 {[%clk 0:02:22]}
11... cxd5 {[%clk 0:02:35.2]} 12. Nxd5 {[%clk 0:02:17.5]} 12... Qxd2 {[%clk
0:02:32.9]} 13. Nxf6+ {[%clk 0:02:17]} 13... Bxf6 {[%clk 0:02:31.2]} 14. Bxb5+
{[%clk 0:02:16.6]} 14... Bd7 {[%clk 0:02:30.1]} 15. Bxd7+ {[%clk 0:02:16.4]}
15... Kxd7 {[%clk 0:02:30.5]} 16. Bxd2 {[%clk 0:02:13.7]} 16... Nc4 {[%clk
0:02:28.6]} 17. Bc1 {[%clk 0:02:11.7]} 17... Na3+ {[%clk 0:02:26.9]} 18. Ka1
{[%clk 0:02:02.1]} 18... Nxc2+ {[%clk 0:02:26.9]} 19. Kb1 {[%clk 0:02:02.7]}
19... Rhc8 {[%clk 0:02:20.8]} 20. Ne2 {[%clk 0:01:58.5]} 20... Rab8 {[%clk
0:02:12.3]} 21. b3 {[%clk 0:01:28.5]} 21... a5 {[%clk 0:02:03.8]} 22. Bb2 {[%clk
0:01:17.4]} 22... Bxb2 {[%clk 0:02:01.2]} 23. Kxb2 {[%clk 0:01:18.3]} 23... a4
{[%clk 0:01:59.6]} 24. Rc1 {[%clk 0:01:06]} 24... a3+ {[%clk 0:01:54.7]} 25. Kb1
{[%clk 0:01:06]} 25... Nb4 {[%clk 0:01:55.6]} 26. Nf4 {[%clk 0:00:42.2]} 26...
g5 {[%clk 0:01:45.5]} 27. Nd5 {[%clk 0:00:37.6]} 27... Nxd5 {[%clk 0:01:38.4]}
28. exd5 {[%clk 0:00:38.5]} 28... Rxc1+ {[%clk 0:01:37.8]} 29. Rxc1 {[%clk
0:00:39.2]} 29... Rb5 {[%clk 0:01:38.3]} 30. Rd1 {[%clk 0:00:37.7]} 30... Rb4
{[%clk 0:01:37.2]} 31. Kc2 {[%clk 0:00:34.9]} 31... Rf4 {[%clk 0:01:36.9]} 32.
Rd3 {[%clk 0:00:34.3]} 32... h5 {[%clk 0:01:21.1]} 33. h3 {[%clk 0:00:29.2]}
33... Kc7 {[%clk 0:01:07]} 34. Kc3 {[%clk 0:00:19.2]} 34... Kb6 {[%clk
0:01:07.2]} 35. Re3 {[%clk 0:00:18.1]} 35... Kc5 {[%clk 0:01:06]} 36. gxh5
{[%clk 0:00:14.7]} 36... Kxd5 {[%clk 0:01:01.7]} 37. Rxe7 {[%clk 0:00:12.6]}
37... Rxf3+ {[%clk 0:01:01.8]} 38. Kb4 {[%clk 0:00:12.8]} 38... f5 {[%clk
0:01:00.5]} 39. Rg7 {[%clk 0:00:07.9]} 39... Rxh3 {[%clk 0:00:55.8]} 40. Rxg5
{[%clk 0:00:08.2]} 40... Ke4 {[%clk 0:00:56.4]} 41. Kxa3 {[%clk 0:00:07.5]}
41... f4 {[%clk 0:00:57.1]} 42. Ka4 {[%clk 0:00:04.8]} 42... f3 {[%clk
0:00:55.1]} 43. Rg8 {[%clk 0:00:02]} 43... f2 {[%clk 0:00:52.6]} 0-1

[Event "Late-Titled-Tuesday-Blitz-January-30-2024"]
[Site "Chess.com"]
[Date "2024.01.30"]
[Round "3"]
[White "norwaytoadog"]
[Black "stasOR4ik"]
[Result "0-1"]
[WhiteElo "2242"]
[BlackElo "2420"]
[TimeControl "180+1"]
[EndTime "14:28:20 PST"]
[Termination "stasOR4ik won by resignation"]

1. e4 {[%clk 0:03:00.1]} 1... c6 {[%clk 0:02:58.7]} 2. d4 {[%clk 0:02:59.9]}
2... d5 {[%clk 0:02:59.6]} 3. e5 {[%clk 0:03:00.2]} 3... c5 {[%clk 0:03:00.2]}
4. c3 {[%clk 0:03:00.1]} 4... Nc6 {[%clk 0:02:59.4]} 5. Be2 {[%clk 0:02:59.9]}
5... cxd4 {[%clk 0:02:57.8]} 6. cxd4 {[%clk 0:02:59.7]} 6... Qb6 {[%clk
0:02:56.8]} 7. Nc3 {[%clk 0:02:59.3]} 7... e6 {[%clk 0:02:42.6]} 8. Nf3 {[%clk
0:02:58.8]} 8... Nge7 {[%clk 0:02:42.7]} 9. O-O {[%clk 0:02:55.2]} 9... Nf5
{[%clk 0:02:42.9]} 10. Na4 {[%clk 0:02:54.4]} 10... Qc7 {[%clk 0:02:37.1]} 11.
g4 {[%clk 0:02:47.3]} 11... Nh6 {[%clk 0:02:34]} 12. h3 {[%clk 0:02:46.8]} 12...
Bd7 {[%clk 0:02:33.3]} 13. Bg5 {[%clk 0:02:40.9]} 13... a6 {[%clk 0:02:28.5]}
14. Rc1 {[%clk 0:02:40.4]} 14... b5 {[%clk 0:02:28.4]} 15. Nc5 {[%clk
0:02:39.5]} 15... Qb6 {[%clk 0:02:27.3]} 16. Qd2 {[%clk 0:02:18.1]} 16... Rc8
{[%clk 0:02:26.4]} 17. Bxh6 {[%clk 0:02:09.3]} 17... gxh6 {[%clk 0:02:26]} 18.
Nxd7 {[%clk 0:02:00.6]} 18... Kxd7 {[%clk 0:02:25.4]} 19. Qf4 {[%clk 0:02:00.4]}
19... Ke8 {[%clk 0:02:18.6]} 20. Bd3 {[%clk 0:01:48.5]} 20... Rc7 {[%clk
0:02:07.7]} 21. Rc2 {[%clk 0:01:33.8]} 21... h5 {[%clk 0:01:40.6]} 22. Qf6
{[%clk 0:01:19.5]} 22... Rg8 {[%clk 0:01:30.2]} 23. Bxh7 {[%clk 0:01:08.9]}
23... Be7 {[%clk 0:01:14.8]} 24. Qf4 {[%clk 0:00:59.2]} 24... Rg7 {[%clk
0:01:09.7]} 25. Bd3 {[%clk 0:00:58.2]} 25... hxg4 {[%clk 0:01:08.9]} 26. hxg4
{[%clk 0:00:57.7]} 26... Nb4 {[%clk 0:00:56.6]} 27. Rxc7 {[%clk 0:00:48.3]}
27... Qxc7 {[%clk 0:00:57.5]} 28. Bb1 {[%clk 0:00:44.7]} 28... Qc4 {[%clk
0:00:56.2]} 29. Rc1 {[%clk 0:00:26.1]} 29... Qe2 {[%clk 0:00:49]} 30. Re1 {[%clk
0:00:24.9]} 30... Qxb2 {[%clk 0:00:48.1]} 31. Kf1 {[%clk 0:00:15.1]} 31... Kd7
{[%clk 0:00:35.7]} 32. Rc1 {[%clk 0:00:13.4]} 32... Rxg4 {[%clk 0:00:30]} 33.
Qxg4 {[%clk 0:00:10.8]} 33... Qxc1+ {[%clk 0:00:30.3]} 34. Kg2 {[%clk
0:00:11.3]} 34... Qxb1 {[%clk 0:00:30.2]} 35. Qg8 {[%clk 0:00:11.1]} 35... Qg6+
{[%clk 0:00:30.4]} 36. Qxg6 {[%clk 0:00:11.1]} 36... fxg6 {[%clk 0:00:31.3]} 0-1